fUST/lending_fUST_20250227
["ID","MTS","AMOUNT","RATE_DAILY","PERIOD"]
[354636872,1740601640104,-506.44407792,0.00058499,120]
[354636873,1740601640126,-500.0,0.00058499,120]
[354636874,1740601640147,-500.0,0.00058499,120]
[354636875,1740601640169,-283.96,0.00058499,120]
[354636876,1740601640192,-500.0,0.00058499,120]
[354636877,1740601640217,-453.04,0.00058499,7]
[354636878,1740601640240,-500.0,0.00058499,120]
[354636879,1740601640262,-500.0,0.00058499,120]
[354636880,1740601640283,-500.0,0.00058499,120]
[354636881,1740601640304,-409.8,0.00058499,120]
[354636882,1740601640326,-500.0,0.00058499,120]
[354636883,1740601640347,-500.0,0.00058499,120]
[354636884,1740601640368,-500.0,0.00058499,120]
[354636885,1740601640390,-329.96548478,0.00058499,120]
[354636886,1740601640413,-500.0,0.00058499,120]
[354636887,1740601640551,-500.0,0.00058499,120]
[354636888,1740601640575,-500.0,0.00058499,120]
[354636889,1740601640597,-500.0,0.00058499,120]
[354636890,1740601640620,-500.0,0.00058499,120]
[354636891,1740601640641,-500.0,0.00058499,120]
[354636892,1740601640664,-500.0,0.00058499,120]
[354636893,1740601640686,-500.0,0.00058499,120]
[354636894,1740601640710,-500.0,0.00058499,120]
[354636895,1740601640731,-500.0,0.00058499,7]
[354636896,1740601640753,-500.0,0.00058499,120]
[354636897,1740601640775,-500.0,0.00058499,120]
[354636898,1740601640797,-341.49,0.00058499,120]
[354636899,1740601640820,-490.9,0.00058499,120]
[354636900,1740601640843,-546.74,0.00058499,120]
[354636901,1740601640865,-314.44,0.00058499,120]
[354636902,1740601640887,-510.61799891,0.00058499,120]
[354636903,1740601640909,-500.0,0.00058499,120]
[354636904,1740601640933,-500.0,0.00058499,120]
[354636905,1740601640961,-500.0,0.00058499,120]
[354636906,1740601640984,-500.0,0.00058499,120]
[354636907,1740601641010,-645.96,0.00058499,120]
[354636908,1740601641034,-500.0,0.00058499,120]
[354636909,1740601641056,-478.88,0.000585,30]
[354636910,1740601641078,-2658.60201566,0.00058629,3]
[354636911,1740601641099,-572.34,0.00058629,6]
[354636912,1740601641121,-553.45,0.00058629,120]
[354636913,1740601641144,-3693.2244,0.00058629,7]
[354636914,1740601641165,-500.0,0.00058773,120]
[354636915,1740601641187,-500.0,0.00058773,120]
[354636916,1740601641211,-500.0,0.00058773,120]
[354636917,1740601641234,-321.73792829,0.00058773,120]
[354636918,1740601641256,-500.0,0.00058773,120]
[354636919,1740601641277,-500.0,0.00058773,120]
[354636920,1740601641299,-500.0,0.00058773,120]
[354636921,1740601641321,-500.0,0.00058773,120]
[354636922,1740601641345,-500.0,0.00058773,120]
[354636923,1740601641368,-500.0,0.00058773,120]
[354636924,1740601641391,-577.42,0.00058773,120]
[354636925,1740601641413,-500.0,0.00058773,120]
[354636926,1740601641436,-500.0,0.00058773,120]
[354636927,1740601641458,-500.0,0.00058773,120]
[354636928,1740601641480,-500.0,0.00058773,120]
[354636929,1740601641502,-500.0,0.00058773,120]
[354636930,1740601641527,-546.74,0.00058773,120]
[354636931,1740601641548,-466.27,0.00058773,120]
[354636932,1740601641570,-500.0,0.00058773,120]
[354636933,1740601641592,-7543.99,0.00058902,120]
[354636934,1740601641614,-150.0,0.00059,2]
[354636935,1740601641637,-237.14,0.00059,30]
[354636936,1740601641657,-500.0,0.00059047,120]
[354636937,1740601641679,-500.0,0.00059047,120]
[354636938,1740601641700,-500.0,0.00059047,120]
[354636939,1740601641724,-500.0,0.00059047,120]
[354636940,1740601641745,-500.0,0.00059047,120]
[354636941,1740601641766,-500.0,0.00059047,120]
[354636942,1740601641788,-500.0,0.00059047,120]
[354636943,1740601641809,-500.0,0.00059047,120]
[354636944,1740601641831,-500.0,0.00059047,120]
[354636945,1740601641854,-500.0,0.00059047,120]
[354636946,1740601641876,-500.0,0.00059047,120]
[354636947,1740601641899,-500.0,0.00059047,120]
[354636948,1740601641923,-500.0,0.00059047,120]
[354636949,1740601641948,-546.74,0.00059047,120]
[354636950,1740601641981,-500.0,0.00059047,120]
[354636951,1740601642007,-500.0,0.00059321,120]
[354636952,1740601642030,-500.0,0.00059321,120]
[354636953,1740601642052,-500.0,0.00059321,120]
[354636954,1740601642074,-500.0,0.00059321,120]
[354636955,1740601642096,-500.0,0.00059321,120]
[354636956,1740601642119,-500.0,0.00059321,120]
[354636957,1740601642142,-573.0,0.00059321,120]
[354636958,1740601642165,-432.9380895,0.00059321,120]
[354636959,1740601642189,-500.0,0.00059321,120]
[354636960,1740601642216,-500.0,0.00059321,120]
[354636961,1740601642239,-500.0,0.00059321,120]
[354636962,1740601642262,-500.0,0.00059321,120]
[354636963,1740601642286,-546.74,0.00059321,120]
[354636964,1740601642309,-500.0,0.00059321,120]
[354636965,1740601642332,-500.0,0.00059595,120]
[354636966,1740601642355,-556.96,0.00059595,120]
[354636967,1740601642379,-546.74,0.00059595,120]
[354636968,1740601642402,-578.48,0.00059595,120]
[354636969,1740601642426,-1000.0,0.00059802,14]
[354636970,1740601642451,-500.0,0.00059869,120]
[354636971,1740601642482,-546.74,0.00059869,120]
[354636972,1740601642510,-560.25,0.0006,60]
[354636973,1740601642537,-560.25,0.0006,60]
[354636974,1740601642563,-560.25,0.0006,60]
[354636975,1740601642591,-560.25,0.0006,60]
[354636976,1740601642617,-560.25,0.0006,60]
[354636977,1740601642643,-560.25,0.0006,60]
[354636978,1740601642672,-560.25,0.0006,60]
[354636979,1740601642700,-560.25,0.0006,60]
[354636980,1740601642730,-560.25,0.0006,60]
[354636981,1740601642756,-560.25,0.0006,60]
[354636982,1740601642779,-560.25,0.0006,60]
[354636983,1740601642804,-560.25,0.0006,60]
[354636984,1740601642827,-500.0,0.00060143,120]
[354636985,1740601642850,-546.74,0.00060143,120]
[354636986,1740601642873,-467.53,0.000602,30]
[354636987,1740601642896,-500.0,0.00060417,120]
[354636988,1740601642919,-546.74,0.00060417,120]
[354636989,1740601642945,-500.0,0.00060691,120]
[354636990,1740601642970,-546.74,0.00060691,120]
[354636991,1740601642994,-500.0,0.00060965,120]
[354636992,1740601643016,-546.74,0.00060965,120]
[354636993,1740601643040,-500.0,0.00061239,120]
[354636994,1740601643062,-546.74,0.00061239,120]
[354636995,1740601643084,-500.0,0.00061513,120]
[354636996,1740601643105,-546.74,0.00061513,120]
[354636997,1740601643127,-500.0,0.00061787,120]
[354636998,1740601643150,-546.74,0.00061787,120]
[354636999,1740601643173,-500.0,0.00062061,120]
[354637000,1740601643198,-546.74,0.00062061,120]
[354637001,1740601643226,-500.0,0.00062335,120]
[354637002,1740601643250,-546.74,0.00062335,120]
[354637003,1740601643272,-155.54,0.000624,30]
[354637004,1740601643295,-620.78,0.00062465,120]
[354637005,1740601643318,-478.88,0.000625,30]
[354637006,1740601643341,-409.32,0.00062609,120]
[354637007,1740601643363,-546.74,0.00062609,120]
[354637008,1740601643386,-546.74,0.00062883,120]
[354637009,1740601643408,-316.84,0.00063157,120]
[354637010,1740601643431,-546.74,0.00063157,120]
[354637011,1740601643455,-546.74,0.00063431,120]
[354637012,1740601643481,-237.14,0.000635,30]
[354637013,1740601643505,-546.74,0.00063705,120]
[354637014,1740601643531,-1207.06696166,0.00063941,120]
[354637015,1740601643555,-546.74,0.00063979,120]
[354637016,1740601643578,-546.74,0.00064253,120]
[354637017,1740601643601,-7543.99,0.00064381,120]
[354637018,1740601643623,-546.74,0.00064527,120]
[354637019,1740601643645,-546.9,0.00064801,120]
[354637020,1740601643665,-467.53,0.000649,30]
[354637021,1740601643685,-152.0,0.00065753,120]
[354637022,1740601643706,-155.0,0.00067,120]
[354637023,1740601643730,-1500.0,0.00068171,14]
[354637024,1740601643752,-500.0,0.00068493,120]
[354637025,1740601643773,-500.0,0.00068493,120]
[354637026,1740601643794,-500.0,0.00068493,120]
[354637027,1740601643815,-500.0,0.00068493,120]
[354637028,1740601643836,-500.0,0.00068493,120]
[354637029,1740601643967,-500.0,0.00068493,120]
[354637030,1740601643989,-500.0,0.00068493,120]
[354637031,1740601644013,-500.0,0.00068493,120]
[354637032,1740601644035,-500.0,0.00068493,120]
[354637033,1740601644057,-500.0,0.00068493,120]
[354637034,1740601644078,-247.83050241,0.00068493,120]
[354637035,1740601644099,-500.0,0.00068493,120]
[354637036,1740601644121,-500.0,0.00068493,120]
[354637037,1740601644142,-500.0,0.00068493,120]
[354637038,1740601644164,-500.0,0.00068493,120]
[354637039,1740601644188,-500.0,0.00068493,120]
[354637040,1740601644211,-500.0,0.00068493,120]
[354637041,1740601644233,-500.0,0.00068493,120]
[354637042,1740601644256,-500.0,0.00068493,120]
[354637043,1740601644279,-500.0,0.00068493,120]
[354637044,1740601644302,-500.0,0.00068493,120]
[354637045,1740601644325,-500.0,0.00068493,120]
[354637046,1740601644348,-500.0,0.00068493,120]
[354637047,1740601644370,-500.0,0.00068493,120]
[354637048,1740601644393,-500.0,0.00068493,120]
[354637049,1740601644416,-500.0,0.00068493,120]
[354637050,1740601644438,-1500.0,0.0006982,14]
[354637051,1740601644467,-7543.99,0.00069861,120]
[354637052,1740601644489,-4455.39858411,0.0007,30]
[354637053,1740601644510,-49730.19206706,0.0007,30]
[354637054,1740601644531,-49730.19206706,0.0007,30]
[354637055,1740601644552,-155.54,0.000711,30]
[354637056,1740601644573,-478.88,0.000717,30]
[354637057,1740601644594,-339.41,0.000723,7]
[354637058,1740601644616,-467.53,0.000739,30]
[354637059,1740601644637,-7543.99,0.0007534,120]
[354637060,1740601644658,-155.54,0.000758,30]
[354637061,1740601644680,-1207.06696166,0.00075927,120]
[354637062,1740601644700,-478.88,0.000764,30]
[354637063,1740601644725,-2200.0,0.00076937,120]
[354637064,1740601644747,-502.522,0.00076937,30]
[354637065,1740601644769,-883.23655692,0.0008,120]
[354637066,1740601644791,-7543.99,0.0008082,120]
[354637067,1740601644812,-4455.39858411,0.00080917,30]
[354637068,1740601644834,-2000.0,0.00081145,14]
[354637069,1740601644854,-2000.0,0.00082794,14]
[354637070,1740601644877,-7543.99,0.00086299,120]
[354637071,1740601644899,-1207.06696166,0.00087914,120]
[354637072,1740601644921,-3000.0,0.000889,120]
[354637073,1740601644946,-150.0,0.0009,120]
[354637074,1740601644972,-302.0,0.00090027,120]
[354637075,1740601645000,-282.84,0.000908,14]
[354637076,1740601645024,-7543.99,0.00091778,120]
[354637077,1740601645045,-467.53,0.00092,60]
[354637078,1740601645067,-2012.0,0.00096,120]
[354637079,1740601645089,-2500.0,0.00096508,14]
[354637080,1740601645111,-5000.0,0.000969,120]
[354637081,1740601645133,-7543.99,0.00097258,120]
[354637082,1740601645155,-711.16954803,0.000979,7]
[354637083,1740601645176,-715.4374153,0.0009801,120]
[354637084,1740601645197,-2500.0,0.00098158,14]
[354637085,1740601645223,-22647.96969204,0.00098999,2]
[354637086,1740601645244,-152.0,0.00099045,120]
[354637087,1740601645268,-98632.00019281,0.000995,120]
[354637088,1740601645800,-153.91,0.000527,30]
[354637089,1740601645825,-500.0,0.00052873,10]
[354637090,1740601645850,-500.0,0.00052873,10]
[354637091,1740601645873,-153.91,0.000579,30]
[354637092,1740601645899,-500.0,0.00058499,120]
[354637093,1740601645924,-500.0,0.00058773,120]
[354637094,1740601645951,-500.0,0.00059047,120]
[354637095,1740601645984,-500.0,0.00059321,120]
[354637096,1740601646015,-557.1188801,0.00059356,60]
[354637097,1740601646041,-153.91,0.000621,30]
[354637098,1740601646062,-622.22,0.00068493,10]
[354637099,1740601646087,-85026.8834459,0.000995,120]
[354637100,1740601646126,-769884.95636129,0.000995,120]
[354637101,1740601646153,-200.45400296,0.000998,120]
[354637102,1740601646179,-1207.06696166,0.000999,120]
[354637103,1740601646202,-7060.72400739,0.000999,2]
[354637104,1740601646230,-24965.88715968,0.00099918,30]
[354637105,1740601646255,-2220.4570967,0.00099918,30]
[354637106,1740601646278,-500.0,0.00099973,7]
[354637107,1740601646303,-1000.0,0.00099999,120]
[354637108,1740601646327,-521.0207461,0.00099999,31]
[354637109,1740601646354,-500.0,0.00099999,120]
[354637110,1740601646381,-543.55991345,0.00099999,120]
[354637111,1740601646406,-500.0,0.00099999,31]
[354637112,1740601646432,-500.0,0.00099999,120]
[354637113,1740601646458,-500.0,0.00099999,31]
[354637114,1740601646487,-440.06334942,0.00099999,31]
[354637115,1740601646513,-500.0,0.00099999,120]
[354637116,1740601646538,-500.0,0.00099999,31]
[354637117,1740601646562,-500.0,0.00099999,120]
[354637118,1740601646587,-500.0,0.00099999,120]
[354637119,1740601646610,-174.46546501,0.00099999,120]
[354637120,1740601646633,-517.39713659,0.00099999,120]
[354637121,1740601646657,-10516.96521579,0.001,120]
[354637122,1740601646682,-28587.15283705,0.001,59]
[354637123,1740601646708,-288339.71575991,0.001,120]
[354637124,1740601648084,-154.0,0.000495,120]
[354637125,1740601648105,-154.0,0.00052,120]
[354637126,1740601648128,-153.91,0.000717,60]
[354637127,1740601648151,-153.91,0.00096,60]
[354637128,1740601648173,-518.52,0.0009949,10]
[354637129,1740601648195,-10516.96521579,0.001,120]
[354637130,1740601648221,-28587.15283705,0.001,59]
[354637131,1740601648244,-90120.98625616,0.001,120]
[354637132,1740601650141,-154.0,0.000545,120]
[354637133,1740601650164,-191.59,0.00058499,120]
[354637134,1740601650189,-76647.817234,0.001,120]
[354638428,1740601718672,1200.0,0.000145,2]
[354639224,1740601746105,-151.0,0.00045,120]
[354639226,1740601746127,-151.0,0.00045,120]
[354640753,1740601812665,151.0,0.00045,120]
[354641237,1740601835441,-1232.3320793,0.00049363,28]
[354641238,1740601835451,-8730.7737347,0.00049463,10]
[354641240,1740601835463,-41599.99999999,0.00049463,10]
[354641241,1740601835482,-1661.66920098,0.00049463,10]
[354641244,1740601835567,-418.88,0.00049463,10]
[354641303,1740601838198,-35090.214428,0.00049463,10]
[354641304,1740601838209,-500.0,0.00049463,2]
[354641305,1740601838219,-151.0,0.0005063,120]
[354641306,1740601838228,-500.0,0.00052054,120]
[354641308,1740601838238,-500.0,0.00052054,120]
[354641309,1740601838247,-500.0,0.00052054,120]
[354641310,1740601838256,-500.0,0.00052054,120]
[354641311,1740601838266,-500.0,0.00052054,120]
[354641312,1740601838275,-385.5586877,0.00052054,2]
[354641314,1740601838293,-500.0,0.00052054,120]
[354641315,1740601838305,-330.63053981,0.00052054,120]
[354641316,1740601838315,-500.0,0.00052054,120]
[354641317,1740601838325,-500.0,0.00052054,120]
[354641319,1740601838334,-500.0,0.00052054,21]
[354641320,1740601838344,-500.0,0.00052054,120]
[354641321,1740601838355,-500.0,0.00052054,120]
[354641322,1740601838366,-500.0,0.00052054,120]
[354641323,1740601838376,-500.0,0.00052054,120]
[354641325,1740601838385,-588.1352269,0.00052054,120]
[354641326,1740601838395,-500.0,0.00052054,120]
[354641327,1740601838404,-500.0,0.00052054,120]
[354641328,1740601838414,-500.0,0.00052054,120]
[354641329,1740601838424,-500.0,0.00052054,120]
[354641331,1740601838434,-500.0,0.00052054,120]
[354641332,1740601838443,-500.0,0.00052327,120]
[354641333,1740601838452,-500.0,0.00052327,120]
[354641334,1740601838462,-500.0,0.00052327,120]
[354641335,1740601838471,-500.0,0.00052327,120]
[354641337,1740601838481,-500.0,0.00052327,120]
[354641338,1740601838490,-500.0,0.00052327,120]
[354641339,1740601838499,-500.0,0.00052327,120]
[354641340,1740601838509,-500.0,0.00052327,120]
[354641341,1740601838518,-500.0,0.00052327,120]
[354641343,1740601838528,-500.0,0.00052327,120]
[354641344,1740601838537,-312.16604964,0.00052327,120]
[354641345,1740601838547,-500.0,0.00052327,120]
[354641346,1740601838557,-500.0,0.00052327,120]
[354641347,1740601838566,-500.0,0.00052327,120]
[354641349,1740601838576,-500.0,0.00052328,120]
[354641350,1740601838585,-500.0,0.00052328,120]
[354641351,1740601838595,-558.47,0.00052328,120]
[354641352,1740601838605,-500.0,0.00052328,120]
[354641354,1740601838616,-500.0,0.00052328,120]
[354641355,1740601838626,-500.0,0.00052328,120]
[354641356,1740601838635,-500.0,0.00052328,120]
[354641357,1740601838644,-500.0,0.00052328,120]
[354641358,1740601838653,-500.0,0.00052328,21]
[354641359,1740601838662,-500.0,0.00052328,120]
[354641361,1740601838672,-500.0,0.00052328,120]
[354641362,1740601838682,-500.0,0.00052328,120]
[354641363,1740601838691,-500.0,0.00052328,120]
[354641364,1740601838700,-500.0,0.00052328,120]
[354641366,1740601838710,-500.0,0.00052328,120]
[354641367,1740601838719,-205.34,0.00052328,120]
[354641368,1740601838728,-199.82,0.000524,30]
[354641369,1740601838737,-500.0,0.00052601,120]
[354641370,1740601838746,-500.0,0.00052601,120]
[354641372,1740601838756,-500.0,0.00052601,120]
[354641373,1740601838765,-169.10764767,0.00052601,120]
[354641374,1740601838774,-639.98,0.00052601,120]
[354641375,1740601838783,-500.0,0.00052601,120]
[354641376,1740601838793,-500.0,0.00052601,120]
[354641378,1740601838802,-500.0,0.00052601,120]
[354641379,1740601838811,-500.0,0.00052601,120]
[354641380,1740601838820,-500.0,0.00052601,120]
[354641381,1740601838830,-4714.99,0.00052601,120]
[354641383,1740601838839,-550.99345741,0.00052601,120]
[354641384,1740601838849,-500.0,0.00052601,120]
[354641385,1740601838858,-500.0,0.00052601,120]
[354641386,1740601838870,-500.0,0.00052602,120]
[354641387,1740601838880,-500.0,0.00052602,120]
[354641389,1740601838890,-500.0,0.00052602,120]
[354641390,1740601838899,-500.0,0.00052602,120]
[354641391,1740601838908,-500.0,0.00052602,120]
[354641392,1740601838917,-405.17,0.00052602,120]
[354641394,1740601838927,-451.59283979,0.00052602,120]
[354641395,1740601838936,-220.17422325,0.00052602,21]
[354641396,1740601838946,-500.0,0.00052602,120]
[354641397,1740601838955,-500.0,0.00052602,120]
[354641398,1740601838964,-500.0,0.00052602,120]
[354641400,1740601838973,-500.0,0.00052602,120]
[354641401,1740601838982,-500.0,0.00052602,120]
[354641402,1740601838991,-500.0,0.00052602,120]
[354641403,1740601839002,-500.0,0.00052875,120]
[354641404,1740601839013,-500.0,0.00052875,120]
[354641406,1740601839022,-500.0,0.00052875,120]
[354641407,1740601839032,-500.0,0.00052875,120]
[354641408,1740601839042,-500.0,0.00052875,120]
[354641409,1740601839054,-500.0,0.00052875,120]
[354641411,1740601839063,-500.0,0.00052875,120]
[354641412,1740601839072,-500.0,0.00052875,120]
[354641413,1740601839083,-500.0,0.00052875,120]
[354641414,1740601839093,-500.0,0.00052875,120]
[354641415,1740601839104,-500.0,0.00052876,120]
[354641417,1740601839113,-500.0,0.00052876,120]
[354641418,1740601839126,-500.0,0.00052876,120]
[354641419,1740601839135,-500.0,0.00052876,120]
[354641420,1740601839144,-500.0,0.00052876,120]
[354641422,1740601839159,-500.0,0.00052876,120]
[354641423,1740601839169,-500.0,0.00052876,120]
[354641424,1740601839178,-500.0,0.00052876,120]
[354641425,1740601839187,-500.0,0.00052876,120]
[354641426,1740601839196,-500.0,0.00052876,120]
[354641428,1740601839205,-500.0,0.00052876,120]
[354641429,1740601839215,-12632.745378,0.00053,30]
[354641430,1740601839225,-500.0,0.00053149,120]
[354641431,1740601839234,-500.0,0.00053149,120]
[354641432,1740601839244,-500.0,0.00053149,120]
[354641434,1740601839253,-503.3,0.00053149,120]
[354641436,1740601839263,-500.0,0.00053149,120]
[354641437,1740601839426,-500.0,0.00053149,120]
[354641438,1740601839436,-500.0,0.00053149,120]
[354641439,1740601839446,-500.0,0.00053149,120]
[354641440,1740601839455,-211.24181605,0.0005315,120]
[354641442,1740601839464,-500.0,0.0005315,120]
[354641443,1740601839474,-500.0,0.0005315,120]
[354641444,1740601839483,-500.0,0.0005315,120]
[354641445,1740601839492,-500.0,0.0005315,120]
[354641446,1740601839502,-500.0,0.0005315,120]
[354641447,1740601839511,-500.0,0.0005315,120]
[354641449,1740601839520,-500.0,0.0005315,120]
[354641450,1740601839529,-500.0,0.0005315,120]
[354641451,1740601839538,-500.0,0.0005315,120]
[354641452,1740601839547,-315.91070787,0.0005315,120]
[354641453,1740601839556,-500.0,0.00053423,120]
[354641455,1740601839566,-500.0,0.00053423,120]
[354641456,1740601839575,-500.0,0.00053423,120]
[354641457,1740601839584,-500.0,0.00053423,120]
[354641459,1740601839594,-500.0,0.00053423,120]
[354641460,1740601839604,-500.0,0.00053423,120]
[354641462,1740601839613,-631.30265444,0.00053424,120]
[354641463,1740601839627,-500.0,0.00053424,120]
[354641464,1740601839637,-500.0,0.00053424,120]
[354641465,1740601839646,-500.0,0.00053424,120]
[354641467,1740601839655,-500.0,0.00053424,120]
[354641468,1740601839664,-500.0,0.00053424,120]
[354641469,1740601839674,-500.0,0.00053424,120]
[354641470,1740601839683,-500.0,0.00053424,120]
[354641471,1740601839692,-500.0,0.00053424,120]
[354641473,1740601839701,-19607.61712864,0.00053693,2]
[354641475,1740601839711,-302.42779566,0.00053697,120]
[354641476,1740601839720,-500.0,0.00053697,120]
[354641477,1740601839729,-500.0,0.00053697,120]
[354641478,1740601839739,-500.0,0.00053697,120]
[354641480,1740601839747,-500.0,0.00053697,120]
[354641481,1740601839756,-500.0,0.00053697,120]
[354641483,1740601839765,-500.0,0.00053697,120]
[354641484,1740601839774,-500.0,0.00053697,120]
[354641485,1740601839784,-500.0,0.00053697,120]
[354641487,1740601839793,-168.52,0.00053698,2]
[354641488,1740601839802,-168.52,0.00053698,2]
[354641489,1740601839812,-168.52,0.00053698,2]
[354641490,1740601839821,-168.52,0.00053698,2]
[354641491,1740601839831,-168.52,0.00053698,2]
[354641493,1740601839840,-168.52820525,0.00053698,2]
[354641494,1740601839850,-500.0,0.00053698,120]
[354641495,1740601839859,-327.63448478,0.00053698,120]
[354641496,1740601839873,-500.0,0.00053698,120]
[354641497,1740601839882,-500.0,0.00053698,120]
[354641499,1740601839891,-500.0,0.00053698,120]
[354641500,1740601839900,-500.0,0.00053698,120]
[354641501,1740601839910,-500.0,0.00053698,120]
[354641502,1740601839919,-500.0,0.00053698,120]
[354641503,1740601839929,-500.0,0.00053971,120]
[354641505,1740601839939,-500.0,0.00053971,120]
[354641506,1740601839948,-500.0,0.00053971,120]
[354641507,1740601839957,-500.0,0.00053971,120]
[354641508,1740601839967,-500.0,0.00053971,120]
[354641509,1740601839976,-500.0,0.00053971,120]
[354641511,1740601839986,-500.0,0.00053971,120]
[354641512,1740601839995,-500.0,0.00053972,120]
[354641513,1740601840006,-500.0,0.00053972,120]
[354641514,1740601840015,-500.0,0.00053972,120]
[354641515,1740601840030,-500.0,0.00053972,120]
[354641517,1740601840039,-500.0,0.00053972,120]
[354641518,1740601840048,-500.0,0.00053972,120]
[354641519,1740601840059,-500.0,0.00053972,120]
[354641520,1740601840068,-500.0,0.00054245,120]
[354641521,1740601840078,-500.0,0.00054245,120]
[354641523,1740601840087,-500.0,0.00054245,120]
[354641524,1740601840099,-500.0,0.00054245,120]
[354641525,1740601840109,-500.0,0.00054245,120]
[354641526,1740601840121,-500.0,0.00054245,120]
[354641527,1740601840131,-500.0,0.00054245,120]
[354641529,1740601840140,-500.0,0.00054246,120]
[354641530,1740601840149,-500.0,0.00054246,120]
[354641531,1740601840158,-500.0,0.00054246,120]
[354641532,1740601840167,-500.0,0.00054246,120]
[354641533,1740601840177,-630.45,0.00054246,120]
[354641535,1740601840186,-500.0,0.00054246,120]
[354641536,1740601840195,-500.0,0.00054246,120]
[354641537,1740601840204,-271.67,0.000543,30]
[354641538,1740601840214,-221.67230175,0.00054519,120]
[354641539,1740601840223,-500.0,0.00054519,120]
[354641541,1740601840233,-500.0,0.00054519,120]
[354641542,1740601840243,-500.0,0.00054519,120]
[354641543,1740601840252,-500.0,0.00054519,120]
[354641544,1740601840262,-500.0,0.00054519,120]
[354641545,1740601840271,-500.0,0.00054519,120]
[354641547,1740601840281,-500.0,0.0005452,120]
[354641548,1740601840290,-500.0,0.0005452,120]
[354641549,1740601840300,-500.0,0.0005452,120]
[354641550,1740601840311,-500.0,0.0005452,120]
[354641551,1740601840320,-500.0,0.0005452,120]
[354641553,1740601840330,-500.0,0.0005452,120]
[354641554,1740601840339,-500.0,0.00054767,10]
[354641555,1740601840348,-312.21423528,0.00054767,10]
[354641556,1740601840358,-500.0,0.00054793,120]
[354641557,1740601840371,-500.0,0.00054793,120]
[354641559,1740601840382,-500.0,0.00054793,120]
[354641560,1740601840391,-500.0,0.00054793,120]
[354641561,1740601840401,-500.0,0.00054793,120]
[354641562,1740601840410,-500.0,0.00054793,120]
[354641563,1740601840420,-152.15685445,0.00054794,120]
[354641565,1740601840430,-197.09327125,0.00054794,120]
[354641566,1740601840439,-500.0,0.00054794,120]
[354641567,1740601840449,-500.0,0.00054794,120]
[354641568,1740601840459,-500.0,0.00054794,120]
[354641569,1740601840468,-500.0,0.00054794,120]
[354641570,1740601840478,-500.0,0.00055067,120]
[354641572,1740601840488,-500.0,0.00055067,120]
[354641573,1740601840497,-500.0,0.00055067,120]
[354641574,1740601840506,-500.0,0.00055067,120]
[354641575,1740601840515,-500.0,0.00055067,120]
[354641576,1740601840525,-500.0,0.00055067,120]
[354641578,1740601840534,-553.90227531,0.00055068,120]
[354641579,1740601840544,-500.0,0.00055068,120]
[354641580,1740601840553,-500.0,0.00055068,120]